{"text_format":"3","workbook":"xlsx","n_sheets":1,"sheets":["Propuesta"],"not_rendered":{"defined_names":20},"read":"whole","date_system":"1900"}

{"sheet":"Propuesta","index":0,"n_rows":41,"n_cols":8,"rows_kept":41,"merged":[[1,1,3,1],[1,4,1,7],[2,4,2,7],[3,5,3,7],[33,4,33,5],[34,4,36,5],[37,4,37,5],[38,4,38,5],[39,4,39,5],[40,4,40,5]]}
[]
[null,"SU LOGOTIPO",null,null,"PROPUESTA DE CONSTRUCCIÓN"]
[{"$nulls":4},"The Refurbished Home | 89 Pacific Ave, San Francisco, CA 78901"]
[{"$nulls":4},"T (123) 456-7890","F (123) 456-7891"]
[]
[null,"CLIENTE",null,null,"CANTIDAD","DESCRIPCIÓN","PRECIO POR UNIDAD","IMPORTE"]
[null,"María Muñoz",null,null,10,"Drywall",{"v":165,"d":"165.00 €"},{"$f":"IFERROR(ElementosDeLínea[[#This Row],[CANTIDAD]]*ElementosDeLínea[[#This Row],[PRECIO POR UNIDAD]], \"\")","v":{"v":1650,"d":"1,650.00 €"}}]
[null,"N.º DE PRESUPUESTO",null,null,21,"Madera contrachapada",{"v":40,"d":"40.00 €"},{"$f":"IFERROR(ElementosDeLínea[[#This Row],[CANTIDAD]]*ElementosDeLínea[[#This Row],[PRECIO POR UNIDAD]], \"\")","v":{"v":840,"d":"840.00 €"}}]
[null,"C-1234",null,null,5,"Articulaciones de madera",{"v":10.5,"d":"10.50 €"},{"$f":"IFERROR(ElementosDeLínea[[#This Row],[CANTIDAD]]*ElementosDeLínea[[#This Row],[PRECIO POR UNIDAD]], \"\")","v":{"v":52.5,"d":"52.50 €"}}]
[null,"FECHA",null,null,164,"Tornillos de 10\"",{"v":2.75,"d":"2.75 €"},{"$f":"IFERROR(ElementosDeLínea[[#This Row],[CANTIDAD]]*ElementosDeLínea[[#This Row],[PRECIO POR UNIDAD]], \"\")","v":{"v":451,"d":"451.00 €"}}]
[null,{"$f":"TODAY()","v":"2023-03-22"},null,null,6,"Cabezal de ducha",{"v":12,"d":"12.00 €"},{"$f":"IFERROR(ElementosDeLínea[[#This Row],[CANTIDAD]]*ElementosDeLínea[[#This Row],[PRECIO POR UNIDAD]], \"\")","v":{"v":72,"d":"72.00 €"}}]
[null,"DIRECCIÓN",null,null,18,"Azulejos de ducha",{"v":5.5,"d":"5.50 €"},{"$f":"IFERROR(ElementosDeLínea[[#This Row],[CANTIDAD]]*ElementosDeLínea[[#This Row],[PRECIO POR UNIDAD]], \"\")","v":{"v":99,"d":"99.00 €"}}]
[null,"123 Avenida A",null,null,1,"Espejo sobre lavabo",{"v":25,"d":"25.00 €"},{"$f":"IFERROR(ElementosDeLínea[[#This Row],[CANTIDAD]]*ElementosDeLínea[[#This Row],[PRECIO POR UNIDAD]], \"\")","v":{"v":25,"d":"25.00 €"}}]
[null,"CIUDAD/ESTADO O PROVINCIA/CÓDIGO POSTAL",{"$nulls":5},{"$f":"IFERROR(ElementosDeLínea[[#This Row],[CANTIDAD]]*ElementosDeLínea[[#This Row],[PRECIO POR UNIDAD]], \"\")","v":{"v":0,"d":"0.00 €"}}]
[null,"Burbank, CA 54321",{"$nulls":5},{"$f":"IFERROR(ElementosDeLínea[[#This Row],[CANTIDAD]]*ElementosDeLínea[[#This Row],[PRECIO POR UNIDAD]], \"\")","v":{"v":0,"d":"0.00 €"}}]
[null,"TELÉFONO",{"$nulls":5},{"$f":"IFERROR(ElementosDeLínea[[#This Row],[CANTIDAD]]*ElementosDeLínea[[#This Row],[PRECIO POR UNIDAD]], \"\")","v":{"v":0,"d":"0.00 €"}}]
[null,"(502) 555-0123",{"$nulls":5},{"$f":"IFERROR(ElementosDeLínea[[#This Row],[CANTIDAD]]*ElementosDeLínea[[#This Row],[PRECIO POR UNIDAD]], \"\")","v":{"v":0,"d":"0.00 €"}}]
[null,"CORREO ELECTRÓNICO",{"$nulls":5},{"$f":"IFERROR(ElementosDeLínea[[#This Row],[CANTIDAD]]*ElementosDeLínea[[#This Row],[PRECIO POR UNIDAD]], \"\")","v":{"v":0,"d":"0.00 €"}}]
[null,"maria@contoso.com",{"$nulls":5},{"$f":"IFERROR(ElementosDeLínea[[#This Row],[CANTIDAD]]*ElementosDeLínea[[#This Row],[PRECIO POR UNIDAD]], \"\")","v":{"v":0,"d":"0.00 €"}}]
[{"$nulls":7},{"$f":"IFERROR(ElementosDeLínea[[#This Row],[CANTIDAD]]*ElementosDeLínea[[#This Row],[PRECIO POR UNIDAD]], \"\")","v":{"v":0,"d":"0.00 €"}}]
[{"$nulls":7},{"$f":"IFERROR(ElementosDeLínea[[#This Row],[CANTIDAD]]*ElementosDeLínea[[#This Row],[PRECIO POR UNIDAD]], \"\")","v":{"v":0,"d":"0.00 €"}}]
[null,"VENDEDOR",{"$nulls":5},{"$f":"IFERROR(ElementosDeLínea[[#This Row],[CANTIDAD]]*ElementosDeLínea[[#This Row],[PRECIO POR UNIDAD]], \"\")","v":{"v":0,"d":"0.00 €"}}]
[null,"Josué Pérez",{"$nulls":5},{"$f":"IFERROR(ElementosDeLínea[[#This Row],[CANTIDAD]]*ElementosDeLínea[[#This Row],[PRECIO POR UNIDAD]], \"\")","v":{"v":0,"d":"0.00 €"}}]
[null,"PROYECTO",{"$nulls":5},{"$f":"IFERROR(ElementosDeLínea[[#This Row],[CANTIDAD]]*ElementosDeLínea[[#This Row],[PRECIO POR UNIDAD]], \"\")","v":{"v":0,"d":"0.00 €"}}]
[null,"Reconstrucción de un baño",{"$nulls":5},{"$f":"IFERROR(ElementosDeLínea[[#This Row],[CANTIDAD]]*ElementosDeLínea[[#This Row],[PRECIO POR UNIDAD]], \"\")","v":{"v":0,"d":"0.00 €"}}]
[null,"PREPARADO POR:",{"$nulls":5},{"$f":"IFERROR(ElementosDeLínea[[#This Row],[CANTIDAD]]*ElementosDeLínea[[#This Row],[PRECIO POR UNIDAD]], \"\")","v":{"v":0,"d":"0.00 €"}}]
[null,"Josué Pérez",{"$nulls":5},{"$f":"IFERROR(ElementosDeLínea[[#This Row],[CANTIDAD]]*ElementosDeLínea[[#This Row],[PRECIO POR UNIDAD]], \"\")","v":{"v":0,"d":"0.00 €"}}]
[{"$nulls":7},{"$f":"IFERROR(ElementosDeLínea[[#This Row],[CANTIDAD]]*ElementosDeLínea[[#This Row],[PRECIO POR UNIDAD]], \"\")","v":{"v":0,"d":"0.00 €"}}]
[{"$nulls":7},{"$f":"IFERROR(ElementosDeLínea[[#This Row],[CANTIDAD]]*ElementosDeLínea[[#This Row],[PRECIO POR UNIDAD]], \"\")","v":{"v":0,"d":"0.00 €"}}]
[null,"ATENCIÓN",{"$nulls":5},{"$f":"IFERROR(ElementosDeLínea[[#This Row],[CANTIDAD]]*ElementosDeLínea[[#This Row],[PRECIO POR UNIDAD]], \"\")","v":{"v":0,"d":"0.00 €"}}]
[null,"María Muñoz",{"$nulls":5},{"$f":"IFERROR(ElementosDeLínea[[#This Row],[CANTIDAD]]*ElementosDeLínea[[#This Row],[PRECIO POR UNIDAD]], \"\")","v":{"v":0,"d":"0.00 €"}}]
[null,"CONDICIONES DE PAGO",{"$nulls":5},{"$f":"IFERROR(ElementosDeLínea[[#This Row],[CANTIDAD]]*ElementosDeLínea[[#This Row],[PRECIO POR UNIDAD]], \"\")","v":{"v":0,"d":"0.00 €"}}]
[null,"A 30 días",{"$nulls":4},"SUBTOTAL",{"$f":"SUBTOTAL(109,ElementosDeLínea[IMPORTE])","v":{"v":3189.5,"d":"3,189.50 €"}}]
[null,"FECHA DE VENCIMIENTO",null,null,"ESTA PROPUESTA INCLUYE LAS CONDICIONES QUE SE INDICAN A CONTINUACIÓN:",null,"TASA DE IMPUESTO ",{"v":0.0775,"d":"7.75%"}]
[null,{"$f":"TODAY()+30","v":"2023-04-21"},null,null,"Escriba aquí las condiciones",null,"IMPUESTO SOBRE LAS VENTAS ",{"$f":"IFERROR(Subtotal*TipoImpositivo, \"\")","v":{"v":247.18625,"d":"247.19 €"}}]
[{"$nulls":6},"OTROS "]
[{"$nulls":6},"TOTAL ",{"$f":"IFERROR(Subtotal+H35+Otros, \"\")","v":{"v":3436.68625,"d":"3,436.69 €"}}]
[]
[{"$nulls":4},"FIRME A CONTINUACIÓN PARA ACEPTAR LA OFERTA:"]
[]
[{"$nulls":4},"REPRESENTANTE AUTORIZADO",null,null,"FECHA"]